bitfinex-derivatives/quotes_BNBF0:USTF0_20250904
["timestamp","ask_amount","ask_price","bid_price","bid_amount"]
[1757024741525,0.71988968,848.39,847.24,1.0573912]
[1757024742230,0.79278478,848.4,847.24,1.0573912]
[1757024742526,1.51267446,848.39,847.38,1.0573912]
[1757024742729,0.71988968,848.38,847.4,1.0573912]
[1757024743025,0.71988968,848.39,847.4,1.0573912]
[1757024743329,0.71988968,848.39,847.39,1.0573912]
[1757024743524,0.71988968,848.4,847.39,1.0573912]
[1757024744629,0.79278478,848.39,847.42,1.0573912]
[1757024744825,0.71988968,848.38,847.42,1.0573912]
[1757024745325,0.71988968,848.38,847.41,1.0573912]
[1757024745528,0.71988968,848.39,847.36,1.0573912]
[1757024745830,0.71988968,848.43,847.39,1.0573912]
[1757024746029,0.71988968,848.45,847.39,1.0573912]
[1757024746525,0.71988968,848.45,847.38,1.0573912]
[1757024746731,0.71988968,848.45,847.39,1.0573912]
[1757024747026,1.510952,848.46,847.38,1.0573912]
[1757024747230,0.71816722,848.45,847.35,1.0573912]
[1757024747531,0.71816722,848.48,847.35,1.0573912]
[1757024748226,0.20517537,848.21,847.35,1.0573912]
[1757024749430,0.20517537,848.21,847.34,1.0573912]
[1757024750223,0.20517537,848.21,847.35,1.0573912]
[1757024750629,0.20517537,848.21,847.34,1.0573912]
[1757024753529,0.20517537,848.21,847.35,1.0573912]
[1757024754229,0.20517537,848.21,847.38,1.0573912]
[1757024754432,0.20517537,848.21,847.37,1.0573912]
[1757024754929,0.71800686,848.43,847.37,1.0573912]
[1757024755129,1.5883957,848.95,847.37,1.0573912]
[1757024755130,0.20515844,848.36,847.37,1.0573912]
[1757024755432,0.20515844,848.36,847.39,1.0573912]
[1757024756032,0.20515844,848.36,847.4,1.0573912]
[1757024756333,0.20515844,848.36,847.39,1.0573912]
[1757024756628,0.20515844,848.36,847.43,1.0573912]
[1757024757029,0.20515844,848.36,847.45,1.0573912]
[1757024757226,0.20515844,848.36,847.46,1.0573912]
[1757024757927,0.20515844,848.36,847.44,1.0573912]
[1757024763633,0.20515844,848.36,847.5,1.0573912]
[1757024763838,0.20515844,848.36,847.49,1.0573912]
[1757024764238,0.20515844,848.36,847.48,1.0573912]
[1757024764535,0.20515844,848.36,847.49,1.0573912]
[1757024764739,0.20515844,848.36,847.51,1.0573912]
[1757024766134,0.20515844,848.36,847.5,1.0573912]
[1757024766337,0.20515844,848.36,847.52,1.0573912]
[1757024767135,0.20515844,848.36,847.51,1.0573912]
[1757024767337,0.20515844,848.36,846.82,0.20517537]
[1757024767338,0.20515844,848.36,847.52,1.0573912]
[1757024767734,0.20515844,848.36,847.55,1.0573912]
[1757024770044,0.20515844,848.36,847.56,1.0573912]
[1757024771241,0.20515844,848.36,847.55,1.0573912]
[1757024771444,0.20515844,848.36,847.56,1.0573912]
[1757024772345,0.20515844,848.36,847.57,1.0573912]
[1757024772540,0.20515844,848.36,847.56,1.0573912]
[1757024773345,0.20515844,848.36,847.57,1.0573912]
[1757024773545,0.20515844,848.36,847.6,1.0573912]
[1757024775549,0.20515844,848.36,847.61,1.0573912]
[1757024776349,0.20515844,848.36,847.62,1.0573912]
[1757024777149,0.20515844,848.36,847.63,1.0573912]
[1757024779652,0.20515844,848.36,847.64,1.0573912]
[1757024781353,0.20515844,848.36,847.65,1.0573912]
[1757024782152,0.20515844,848.36,847.64,1.0573912]
[1757024782348,0.20515844,848.36,847.65,1.0573912]
[1757024783248,0.20515844,848.36,847.66,1.0573912]
[1757024783652,0.20515844,848.36,847.51,1.5831612]
[1757024783653,0.20515844,848.36,847.65,1.0573912]
[1757024784152,0.20515844,848.36,847.63,1.0573912]
[1757024784554,0.20515844,848.36,847.64,1.0573912]
[1757024785052,0.20515844,848.36,847.39,1.0573912]
[1757024785548,0.20515844,848.36,847.4,1.0573912]
[1757024789351,0.20515844,848.36,847.41,1.0573912]
[1757024789751,0.20515844,848.36,847.4,1.0573912]
[1757024790356,0.20515844,848.36,847.41,1.0573912]
[1757024790657,0.71768896,848.6,847.41,1.0573912]
[1757024790852,0.20513486,848.45,847.41,1.0573912]
[1757024791553,0.20513486,848.45,847.42,1.0573912]
[1757024794360,0.20513486,848.45,847.43,1.0573912]
[1757024794860,0.20513486,848.45,847.55,1.0573912]
[1757024795662,0.20513486,848.45,847.56,1.0573912]
[1757024797262,0.20513486,848.45,847.57,1.0573912]
[1757024797564,0.20513486,848.45,846.82,0.20517537]
[1757024797565,0.20513486,848.45,847.66,1.0573912]
[1757024797764,0.20513486,848.45,847.65,1.0573912]
[1757024797958,0.20513486,848.45,847.66,1.0573912]
[1757024798161,0.20513486,848.45,847.67,1.0573912]
[1757024799264,0.20513486,848.45,847.68,1.0573912]
[1757024799964,0.20513486,848.45,847.67,1.0573912]
[1757024800660,0.20513486,848.45,847.68,1.0573912]
[1757024800861,0.20513486,848.45,847.7,1.0573912]
[1757024802360,0.20513486,848.45,847.71,1.0573912]
[1757024804465,0.20513486,848.45,847.72,1.0573912]
[1757024806266,0.20513486,848.45,847.71,1.0573912]
[1757024806468,0.20513486,848.45,847.72,1.0573912]
[1757024806866,0.20513486,848.45,847.68,1.0573912]
[1757024808367,0.20513486,848.45,847.69,1.0573912]
[1757024809773,0.20513486,848.45,847.73,1.0573912]
[1757024810269,0.79362117,848.67,847.73,1.0573912]
[1757024810470,0.20509798,848.57,847.73,1.0573912]
[1757024812271,0.20509798,848.57,847.74,1.0573912]
[1757024815374,0.20509798,848.57,847.75,1.0573912]
[1757024816480,0.20509798,848.57,847.76,1.0573912]
[1757024816673,0.20509798,848.57,847.77,1.0573912]
[1757024816877,0.20509798,848.57,847.82,1.0573912]
[1757024818173,0.20509798,848.57,847.81,1.0573912]
[1757024818378,0.20509798,848.57,847.82,1.0573912]
[1757024818779,0.20509798,848.57,847.8,1.0573912]
[1757024818975,0.20509798,848.57,847.79,1.0573912]
[1757024820177,0.20509798,848.57,847.78,1.0573912]
[1757024820377,0.20509798,848.57,847.79,1.0573912]
[1757024825785,0.20509798,848.57,847.99,0.79259412]
[1757024826581,0.20509798,848.57,848.0,0.79259412]
[1757024827387,0.20509798,848.57,848.01,0.79259412]
[1757024827790,0.20509798,848.57,847.75,0.79259412]
[1757024828089,0.20509798,848.57,847.77,0.79259412]
[1757024830091,0.20509798,848.57,847.78,0.79259412]
[1757024831097,0.20509798,848.57,847.47,1.0573912]
[1757024831098,0.20509798,848.57,847.77,0.79259412]
[1757024831295,0.20509798,848.57,847.78,0.79259412]
[1757024832296,0.20509798,848.57,847.81,0.79259412]
[1757024832500,0.20509798,848.57,847.84,0.79259412]
[1757024834000,0.20509798,848.57,847.87,0.79259412]
[1757024834897,0.20509798,848.57,847.89,0.79259412]
[1757024835297,0.20509798,848.57,847.88,0.79259412]
[1757024836702,0.923413,848.57,847.89,0.79259412]
[1757024836997,0.71831502,848.56,847.89,0.79259412]
[1757024837199,0.20509798,848.57,847.9,0.79259412]
[1757024838606,0.20509798,848.57,847.84,0.79259412]
[1757024838803,0.20509798,848.57,847.83,0.79259412]
[1757024839201,0.923413,848.57,847.83,0.79259412]
[1757024839403,0.71831502,848.56,847.83,0.79259412]
[1757024839606,0.20509798,848.57,847.83,0.79259412]
[1757024844104,0.923413,848.57,847.83,0.79259412]
[1757024844308,0.71831502,848.56,847.83,0.79259412]
[1757024844507,0.20509798,848.57,847.83,0.79259412]
[1757024845104,0.20509798,848.57,847.84,0.79259412]
[1757024846807,0.20509798,848.57,847.82,0.79259412]
[1757024847806,0.20509798,848.57,847.81,0.79259412]
[1757024848206,0.20509798,848.57,847.82,0.79259412]
[1757024848508,0.20509798,848.57,847.86,0.79259412]
[1757024848706,0.20509798,848.57,847.87,0.79259412]
[1757024848905,0.20509798,848.57,847.88,0.79259412]
[1757024851310,0.20509798,848.57,847.89,0.79259412]
[1757024855114,0.20509798,848.57,847.9,0.79259412]
[1757024855811,0.20509798,848.57,847.69,1.0573912]
[1757024856514,0.20509798,848.57,847.71,1.0573912]
[1757024857012,0.20509798,848.57,846.82,0.20517537]
[1757024857013,0.79362117,848.55,847.75,1.0573912]
[1757024857213,0.71872848,848.54,847.76,1.0573912]
[1757024857612,0.79362117,848.53,847.78,1.0573912]
[1757024857810,0.71872848,848.52,847.78,1.0573912]
[1757024858110,1.51234965,848.52,847.79,1.0573912]
[1757024858410,0.71872848,848.51,847.8,1.0573912]
[1757024858610,0.71872848,848.52,847.8,1.0573912]
[1757024858814,1.51234965,848.52,847.79,1.0573912]
[1757024859115,0.71872848,848.51,847.79,1.0573912]
[1757024862722,0.71872848,848.56,847.63,1.5831612]
[1757024863020,0.79466199,848.54,847.76,1.0577951]
[1757024863220,0.71872848,848.53,847.76,1.0577951]
[1757024863615,0.71872848,848.56,847.76,1.0577951]
[1757024863916,0.20509798,848.57,847.59,1.5831612]
[1757024864321,0.79466604,848.54,847.77,1.0578004]
[1757024864620,0.71872848,848.53,847.77,1.0578004]
[1757024866821,1.51339452,848.53,847.78,1.0578004]
[1757024867021,0.71872848,848.52,847.78,1.0578004]
[1757024870621,0.71872848,848.52,847.75,1.0578004]
[1757024870921,0.71872848,848.54,847.75,1.0578004]
[1757024872418,0.79466604,848.53,847.78,1.0578004]
[1757024872623,0.71872848,848.52,847.78,1.0578004]
[1757024879124,0.71872848,848.52,847.77,1.0578004]
[1757024879423,0.71872848,848.53,847.78,1.0578004]
[1757024880423,0.79466604,848.52,847.8,1.0578004]
[1757024880627,0.71872848,848.51,847.8,1.0578004]
[1757024881429,0.71872848,848.51,847.81,1.0578004]
[1757024882128,0.71872848,848.51,847.82,1.0578004]
[1757024883328,1.51339452,848.51,847.83,1.0578004]
[1757024883528,0.71872848,848.5,847.83,1.0578004]
[1757024884327,1.51339452,848.5,847.84,1.0578004]
[1757024884530,0.71872848,848.49,847.84,1.0578004]
[1757024885233,0.71872848,848.49,847.85,1.0578004]
[1757024885532,0.71872848,848.49,847.84,1.0578004]
[1757024886235,1.51339452,848.49,847.85,1.0578004]
[1757024886535,0.71872848,848.48,847.85,1.0578004]
[1757024887134,1.51339452,848.48,847.86,1.0578004]
[1757024887431,0.7195433,848.47,847.86,1.0578004]
[1757024888836,0.79466604,848.46,847.89,1.0578004]
[1757024889037,0.7195433,848.45,847.89,1.0578004]
[1757024889633,0.79466604,848.46,847.89,1.0578004]
[1757024890137,0.71954687,848.45,847.89,1.0578004]
[1757024890335,0.79466604,848.46,847.89,1.0578004]
[1757024890533,0.71954687,848.45,847.89,1.0578004]
[1757024891133,0.79466604,848.46,847.89,1.0578004]
[1757024891837,0.71954461,848.45,847.89,1.0578004]
[1757024896340,0.7195449,848.45,847.88,1.0578004]
[1757024897138,0.7195449,848.46,847.88,1.0578004]
[1757024897439,0.7195449,848.46,847.87,1.0578004]
[1757024898745,0.7195449,848.46,847.85,1.0578004]
[1757024898946,0.7195449,848.48,847.85,1.0578004]
[1757024902146,1.51425487,848.48,847.85,1.0578004]
[1757024902346,0.71958883,848.47,847.86,1.0578004]
[1757024906054,0.71958883,848.47,847.87,1.0578004]
[1757024906650,1.51425487,848.47,847.87,1.0578004]
[1757024906854,0.71958883,848.46,847.87,1.0578004]
[1757024907354,0.71958883,848.46,847.88,1.0578004]
[1757024907755,0.71958883,848.46,847.87,1.0578004]
[1757024908555,0.79466604,848.45,847.9,1.0578004]
[1757024908756,0.71958883,848.44,847.9,1.0578004]
[1757024912359,0.71958883,848.44,847.88,1.0578004]
[1757024912558,0.71958883,848.45,847.88,1.0578004]
[1757024913660,0.71958883,848.45,847.89,1.0578004]
[1757024915860,0.71958883,848.45,847.88,1.0578004]
[1757024916156,0.71958883,848.46,847.88,1.0578004]
[1757024917357,0.71958883,848.46,847.87,1.0578004]
[1757024917561,0.71958883,848.46,847.85,1.0578004]
[1757024917758,0.71958883,848.48,847.85,1.0578004]
[1757024918360,0.71958883,848.48,847.84,1.0578004]
[1757024920457,0.71958883,848.48,847.83,1.0578004]
[1757024920658,0.71958883,848.49,847.77,1.0578004]
[1757024920960,0.71958883,848.54,847.77,1.0578004]
[1757024921256,0.71958883,848.53,847.77,1.0578004]
[1757024921460,0.71958883,848.54,847.77,1.0578004]
[1757024921758,0.71958883,848.53,847.77,1.0578004]
[1757024922058,0.71958883,848.54,847.77,1.0578004]
[1757024922361,0.71958883,848.53,847.77,1.0578004]
[1757024922657,0.71958883,848.54,847.77,1.0578004]
[1757024922861,0.71958883,848.53,847.77,1.0578004]
[1757024923058,0.71958883,848.54,847.77,1.0578004]
[1757024923356,0.71958883,848.54,847.74,1.0578004]
[1757024923561,0.71958883,848.56,847.74,1.0578004]
[1757024923757,0.71958883,848.55,847.74,1.0578004]
[1757024923959,0.71958883,848.56,847.74,1.0578004]
[1757024924157,0.71958883,848.55,847.74,1.0578004]
[1757024924456,0.71958883,848.56,847.74,1.0578004]
[1757024924658,0.71958883,848.56,847.66,1.0578004]
[1757024924957,0.20509798,848.57,847.66,1.0578004]
[1757024924958,0.71958883,848.55,847.66,1.0578004]
[1757024925158,0.71958883,848.56,847.66,1.0578004]
[1757024925360,0.71958883,848.55,847.66,1.0578004]
[1757024925663,0.71958883,848.56,847.66,1.0578004]
[1757024925964,0.71958883,848.55,847.66,1.0578004]
[1757024926161,0.71958883,848.56,847.66,1.0578004]
[1757024926366,0.71958883,848.55,847.66,1.0578004]
[1757024926561,0.71967109,848.56,847.66,1.0578004]
[1757024926760,0.71967109,848.55,847.66,1.0578004]
[1757024926960,0.71967109,848.56,847.66,1.0578004]
[1757024927259,0.71967109,848.55,847.66,1.0578004]
[1757024927460,0.71967109,848.55,847.43,1.5867006]
[1757024927461,0.71967109,848.56,847.67,1.0578004]
[1757024927660,0.71967109,848.55,847.67,1.0578004]
[1757024927859,0.71967109,848.56,847.67,1.0578004]
[1757024928061,0.71967109,848.55,847.67,1.0578004]
[1757024928259,0.71967109,848.56,847.67,1.0578004]
[1757024928459,0.71967109,848.55,847.67,1.0578004]
[1757024928665,0.71967109,848.56,847.67,1.0578004]
[1757024928862,0.71967109,848.55,847.67,1.0578004]
[1757024929066,0.71967109,848.56,847.67,1.0578004]
[1757024929260,0.71967109,848.56,847.66,1.0578004]
[1757024930165,0.71967109,848.55,847.66,1.0578004]
[1757024930367,0.71967109,848.56,847.67,1.0578004]
[1757024930566,0.71967109,848.55,847.69,1.0578004]
[1757024930765,0.71967109,848.54,847.69,1.0578004]
[1757024930970,0.71967109,848.56,847.69,1.0578004]
[1757024931169,0.71967109,848.55,847.69,1.0578004]
[1757024931469,0.71967109,848.56,847.69,1.0578004]
[1757024931665,0.71967109,848.55,847.69,1.0578004]
[1757024931865,0.71967109,848.56,847.69,1.0578004]
[1757024932066,0.71967109,848.55,847.69,1.0578004]
[1757024932268,0.71967109,848.56,847.69,1.0578004]
[1757024932470,0.71967109,848.55,847.69,1.0578004]
[1757024932770,0.71967109,848.56,847.69,1.0578004]
[1757024932971,0.71967109,848.55,847.69,1.0578004]
[1757024933170,0.71967109,848.54,847.69,1.0578004]
[1757024933368,1.51524135,848.56,847.71,1.0578004]
[1757024933571,0.71967109,848.55,847.71,1.0578004]
[1757024933872,0.71967109,848.54,847.71,1.0578004]
[1757024934072,0.71967109,848.55,847.71,1.0578004]
[1757024934372,0.71967109,848.54,847.71,1.0578004]
[1757024934573,0.79557026,848.49,847.8,1.0578004]
[1757024934873,0.71967109,848.48,847.8,1.0578004]
[1757024935473,0.71967109,848.48,847.79,1.0578004]
[1757024937373,0.71967109,848.48,847.74,1.0578004]
[1757024937572,0.71967109,848.52,847.74,1.0578004]
[1757024937871,0.71967109,848.52,847.68,1.0578004]
[1757024938069,0.71967109,848.56,847.68,1.0578004]
[1757024938274,0.71967109,848.55,847.68,1.0578004]
[1757024938573,0.71967109,848.56,847.68,1.0578004]
[1757024938873,0.79557026,848.54,847.74,1.0578004]
[1757024939071,0.79557026,848.4,847.84,1.0578004]
[1757024939374,0.71967109,848.39,847.83,1.0578004]
[1757024939670,0.71967109,848.4,847.79,1.0578004]
[1757024939875,0.71967109,848.4,847.74,1.0578004]
[1757024940070,0.71967109,848.4,847.75,1.0578004]
[1757024940374,0.79557026,848.37,847.71,1.0578004]
[1757024940570,0.71967109,848.36,847.71,1.0578004]
[1757024941475,0.71967109,848.36,847.7,1.0578004]
[1757024941771,0.71967109,848.37,847.7,1.0578004]
[1757024942371,0.71967109,848.37,847.69,1.0578004]
[1757024942574,0.71967109,848.38,847.69,1.0578004]
[1757024942975,0.71953847,848.38,847.69,1.0578004]
[1757024943271,0.71953847,848.38,847.68,1.0578004]
[1757024943571,1.51510873,848.39,847.65,1.0578004]
[1757024943775,0.71953847,848.38,847.65,1.0578004]
[1757024943972,0.71953847,848.38,847.64,1.0578004]
[1757024945576,0.71953847,848.39,847.63,1.0578004]
[1757024946376,0.71953847,848.39,847.62,1.0578004]
[1757024946576,0.71953847,848.4,847.62,1.0578004]
[1757024948472,0.71953847,848.4,847.61,1.0578004]
[1757024948678,0.71953847,848.41,847.62,1.0578004]
[1757024949377,0.71953847,848.41,847.61,1.0578004]
[1757024949577,0.79557026,848.39,847.64,1.0578004]
[1757024949773,0.71953847,848.38,847.64,1.0578004]
[1757024949979,0.71953847,848.38,847.65,1.0578004]
[1757024950178,1.51510873,848.38,847.66,1.0578004]
[1757024950381,0.71953847,848.37,847.65,1.0578004]
[1757024950581,0.71953847,848.38,847.65,1.0578004]
[1757024951883,0.79557026,848.39,847.65,1.0578004]
[1757024952082,0.71880362,848.38,847.65,1.0578004]
[1757024952682,0.79557026,848.39,847.65,1.0578004]
[1757024953085,1.51435866,848.38,847.67,1.0578004]
[1757024953282,0.7187884,848.37,847.67,1.0578004]
[1757024954486,0.7187884,848.37,847.66,1.0578004]
[1757024955884,0.7187884,848.37,847.65,1.0578004]
[1757024956082,0.7187884,848.38,847.61,1.0578004]
[1757024956286,0.7187884,848.41,847.61,1.0578004]
[1757024956785,0.7187884,848.42,847.61,1.0578004]
[1757024958387,0.7187884,848.42,847.6,1.0578004]
[1757024958682,0.7187884,848.42,847.59,1.0578004]
[1757024958887,0.7187884,848.43,847.59,1.0578004]
[1757024959587,0.7187884,848.43,847.58,1.0578004]
[1757024959888,0.7187884,848.44,847.58,1.0578004]
[1757024965787,1.51435866,848.44,847.59,1.0578004]
[1757024965993,0.79557026,848.42,847.62,1.0578004]
[1757024966190,0.7187884,848.41,847.62,1.0578004]
[1757024966393,0.71843505,848.41,847.62,1.0578004]
[1757024968495,0.79557026,848.39,847.65,1.0578004]
[1757024968692,0.71843505,848.38,847.65,1.0578004]
[1757024972195,0.71843505,848.38,847.64,1.0578004]
[1757024972396,1.51400531,848.4,847.64,1.0578004]
[1757024972696,0.71843505,848.39,847.64,1.0578004]
[1757024973196,0.71843505,848.39,847.65,1.0578004]
[1757024973497,0.71843505,848.39,847.64,1.0578004]
[1757024973903,0.71843505,848.39,847.59,1.0578004]
[1757024974103,0.71843505,848.43,847.59,1.0578004]
[1757024980706,1.51400531,848.43,847.59,1.0578004]
[1757024980910,0.71843505,848.42,847.59,1.0578004]
[1757024981111,0.71843505,848.42,847.6,1.0578004]
[1757024982506,1.51400531,848.42,847.61,1.0578004]
[1757024982709,0.71843505,848.41,847.6,1.0578004]
[1757024982907,0.71843505,848.42,847.6,1.0578004]
[1757024983813,0.71843505,848.42,847.03,0.20515662]
[1757024983814,0.79557026,848.41,847.63,1.0578004]
[1757024984013,0.71843505,848.4,847.63,1.0578004]
[1757024984414,1.51400531,848.4,847.63,1.0578004]
[1757024984609,0.71843505,848.39,847.63,1.0578004]
[1757024985611,1.51276622,848.39,847.64,1.0578004]
[1757024985815,0.71843505,848.38,847.64,1.0578004]
[1757024986516,0.71843505,848.38,847.65,1.0578004]
[1757024986815,0.71843505,848.38,847.64,1.0578004]
[1757024988216,0.71843505,848.38,847.65,1.0578004]
[1757024989114,1.51276622,848.38,847.66,1.0578004]
[1757024989313,0.71888755,848.37,847.66,1.0578004]
[1757024989916,1.51321872,848.37,847.67,1.0578004]
[1757024990213,0.71888755,848.36,847.67,1.0578004]
[1757024991316,0.71888755,848.36,847.66,1.0578004]
[1757024991516,0.71888755,848.37,847.66,1.0578004]
[1757024992617,1.51367548,848.37,847.66,1.0578004]
[1757024992818,0.71906819,848.36,847.66,1.0578004]
[1757024993012,1.51367548,848.36,847.68,1.0578004]
[1757024993313,0.71906819,848.35,847.68,1.0578004]
[1757024994313,1.51367548,848.35,847.69,1.0578004]
[1757024994617,0.71906819,848.34,847.69,1.0578004]
[1757024996213,1.51367548,848.34,847.7,1.0578004]
[1757024996413,0.71906819,848.33,847.7,1.0578004]
[1757024997116,1.51367548,848.33,847.71,1.0578004]
[1757024997418,0.71906819,848.32,847.71,1.0578004]
[1757024998319,1.51367548,848.32,847.72,1.0578004]
[1757024998521,0.71906819,848.31,847.72,1.0578004]
[1757024999419,0.71906819,848.31,847.73,1.0578004]
[1757024999420,1.51367548,848.31,847.73,1.0578004]
[1757024999617,0.79460729,848.33,847.7,1.0578004]
[1757024999820,0.71996575,848.32,847.7,1.0578004]
[1757025000318,0.71996575,848.32,847.61,1.0578004]
[1757025000518,0.79460729,848.36,847.43,1.0578004]
[1757025000717,0.71996575,848.35,847.43,1.0578004]
[1757025001021,0.71996575,848.34,847.45,1.0578004]
[1757025001318,0.71996575,848.34,847.43,1.0578004]
[1757025001517,0.71996575,848.36,847.43,1.0578004]
[1757025001721,0.71996575,848.35,847.43,1.0578004]
[1757025001918,0.71996575,848.34,847.43,1.0578004]
[1757025002222,1.514433,848.36,847.44,1.0578004]
[1757025002419,1.514433,848.35,847.45,1.0578004]
[1757025002619,0.71982571,848.34,847.45,1.0578004]
[1757025003222,0.71982571,848.34,847.44,1.0578004]
[1757025003420,0.71982571,848.35,847.44,1.0578004]
[1757025004019,0.79460729,848.31,847.51,1.0578004]
[1757025004224,0.71982571,848.3,847.51,1.0578004]
[1757025005223,0.71982571,848.3,847.5,1.0578004]
[1757025005820,1.514433,848.3,847.51,1.0578004]
[1757025006020,0.71982571,848.29,847.51,1.0578004]
[1757025006225,0.71982571,848.29,847.5,1.0578004]
[1757025006425,0.71982571,848.3,847.5,1.0578004]
[1757025007421,1.514433,848.3,847.52,1.0578004]
[1757025007625,0.71982571,848.29,847.52,1.0578004]
[1757025007925,0.71982571,848.29,847.36,1.0578004]
[1757025008121,0.20509798,848.57,847.31,1.0578004]
[1757025008122,0.79460729,848.38,847.31,1.0578004]
[1757025008325,0.71982571,848.37,847.3,1.0578004]
[1757025008825,0.71982571,848.37,847.29,1.0578004]
[1757025009026,0.71982571,848.38,847.29,1.0578004]
[1757025009522,0.71982571,848.39,847.29,1.0578004]
[1757025010227,0.71982571,848.39,847.28,1.0578004]
[1757025010629,0.20519231,848.12,847.28,1.0578004]
[1757025012726,0.20519231,848.12,847.24,1.0578004]
[1757025014334,0.20519231,848.12,847.17,1.0578004]
[1757025017337,0.20519231,848.12,847.16,1.0578004]
[1757025018036,0.20519231,848.12,847.2,1.0578004]
[1757025018240,0.20519231,848.12,847.19,1.0578004]
[1757025018845,0.20519231,848.12,847.2,1.0578004]
[1757025020339,0.20519231,848.12,847.19,1.0578004]
[1757025021345,0.20519231,848.12,847.21,1.0578004]
[1757025022148,0.20519231,848.12,847.22,1.0578004]
[1757025022344,0.20519231,848.12,847.23,1.0578004]
[1757025022645,0.20519231,848.12,847.25,1.0578004]
[1757025023049,0.20519231,848.12,847.26,1.0578004]
[1757025023546,0.20519231,848.12,847.44,1.0578004]
[1757025024051,0.20519231,848.12,847.5,1.0578004]
[1757025025353,0.20519231,848.12,847.49,1.0578004]
[1757025028350,0.20519231,848.12,847.48,1.0578004]
[1757025028653,0.20519231,848.12,847.49,1.0578004]
[1757025029950,0.20519231,848.12,847.2,1.0578004]
[1757025033149,0.20519231,848.12,847.26,1.0578004]
[1757025033453,0.20519231,848.12,847.03,0.20515662]
[1757025033454,0.20519231,848.12,847.27,1.0578004]
[1757025036450,0.20519231,848.12,847.28,1.0578004]
[1757025039554,0.20519231,848.12,847.46,1.0578004]
[1757025041057,0.20519231,848.12,847.48,1.0578004]
[1757025041655,0.20519231,848.12,847.54,1.0578004]
[1757025042056,0.20519231,848.12,847.56,1.0578004]
[1757025042259,0.20519231,848.12,847.57,1.0578004]
[1757025044156,0.71845483,848.34,847.57,1.0578004]
[1757025044352,0.71845483,848.34,847.58,1.0578004]
[1757025044656,0.20515723,848.28,847.45,1.0578004]
[1757025047957,0.20515723,848.28,847.49,1.0578004]
[1757025048257,0.20515723,848.28,847.51,1.0578004]
[1757025050158,0.20515723,848.28,847.5,1.0578004]
[1757025050658,0.20515723,848.28,847.51,1.0578004]
[1757025052253,0.20515723,848.28,847.5,1.0578004]
[1757025052757,0.20515723,848.28,847.52,1.0578004]
[1757025053252,0.20515723,848.28,847.53,1.0578004]
[1757025054255,0.20515723,848.28,847.63,1.0578004]
[1757025056956,0.20515723,848.28,847.64,1.0578004]
[1757025057367,0.20515723,848.28,847.65,1.0578004]
[1757025057664,0.20515723,848.28,847.69,1.0578004]
[1757025059068,0.20515723,848.28,847.67,1.0578004]
[1757025060671,0.20515723,848.28,847.68,1.0578004]
[1757025061472,0.20515723,848.28,847.52,1.5867006]
[1757025061473,0.20515723,848.28,847.67,1.0578004]
[1757025063873,0.20515723,848.28,847.68,1.0578004]
[1757025066376,0.20515723,848.28,847.67,1.0578004]
[1757025067280,0.20515723,848.28,847.68,1.0578004]
[1757025068280,0.20515723,848.28,847.67,1.0578004]
[1757025068881,0.20515723,848.28,847.69,1.0578004]
[1757025069279,0.20515723,848.28,847.66,1.0578004]
[1757025073783,0.20515723,848.28,847.67,1.0578004]
[1757025078384,0.20515723,848.28,847.68,1.0578004]
[1757025079288,0.20515723,848.28,847.7,1.0578004]
[1757025082192,0.20515723,848.28,847.71,1.0578004]
[1757025084193,0.20515723,848.28,847.72,1.0578004]
[1757025086192,0.20515723,848.28,847.58,1.5867006]
[1757025086193,0.20515723,848.28,847.73,1.0578004]
[1757025088197,0.20515723,848.28,847.74,1.0578004]
[1757025088397,0.20515723,848.28,847.6,1.5867006]
[1757025088398,0.20515723,848.28,847.73,1.0578004]
[1757025089295,0.20515723,848.28,847.74,1.0578004]
[1757025090298,0.20515723,848.28,847.75,1.0578004]
[1757025090498,0.20515723,848.28,847.74,1.0578004]
[1757025091098,0.20515723,848.28,847.72,1.0578004]
[1757025091298,0.20515723,848.28,847.73,1.0578004]
[1757025096398,0.20515723,848.28,847.74,1.0578004]
[1757025097303,0.20515723,848.28,847.75,1.0578004]
[1757025098000,0.20515723,848.28,847.74,1.0578004]
[1757025098204,0.20515723,848.28,847.76,1.0578004]
[1757025100403,0.20515723,848.28,847.77,1.0578004]
[1757025100906,0.20515723,848.28,847.78,1.0578004]
[1757025101403,0.20515723,848.28,847.79,1.0578004]
[1757025101609,0.20515723,848.28,847.78,1.0578004]
[1757025103205,0.20515723,848.28,847.79,1.0578004]
[1757025104208,0.20515723,848.28,847.8,1.0578004]
[1757025104704,0.20515723,848.28,847.81,1.0578004]
[1757025104908,0.20515723,848.28,847.8,1.0578004]
[1757025105207,0.20515723,848.28,847.81,1.0578004]
[1757025106306,0.71998761,848.39,847.81,1.0578004]
[1757025107516,0.79413057,848.4,847.81,1.0578004]
[1757025107711,0.20512397,848.41,847.52,1.0578004]
[1757025108510,0.20512397,848.41,847.51,1.0578004]
[1757025109215,0.20512397,848.41,847.52,1.0578004]
[1757025109409,0.20512397,848.41,847.51,1.0578004]
[1757025109918,0.20512397,848.41,847.52,1.0578004]
[1757025110315,0.20512397,848.41,847.51,1.0578004]
[1757025112412,0.20512397,848.41,847.62,1.0578004]
[1757025113412,0.20512397,848.41,847.61,1.0578004]
[1757025115117,0.20512397,848.41,847.65,1.0578004]
[1757025115318,0.20512397,848.41,847.64,1.0578004]
[1757025115719,0.20512397,848.41,847.65,1.0578004]